bitfinex-derivatives/quotes_BTCF0:USTF0_20240923
["timestamp","ask_amount","ask_price","bid_price","bid_amount"]
[1727093548815,0.3380838,63429.0,63428.0,0.3353196]
[1727093550318,0.3380838,63429.0,63428.0,0.2853196]
[1727093550529,0.3380838,63429.0,63428.0,0.3641526]
[1727093550919,0.3380838,63429.0,63428.0,0.4429856]
[1727093553623,0.3380838,63429.0,63428.0,0.56703524]
[1727093553829,0.3380838,63429.0,63428.0,0.56711821]
[1727093554331,0.3380838,63429.0,63428.0,0.82135748]
[1727093555234,0.3380838,63429.0,63428.0,0.71120624]
[1727093556137,0.3608,63429.0,63428.0,0.71120624]
[1727093556834,0.02299737,63435.0,63434.0,0.078826]
[1727093557032,0.801303,63436.0,63435.0,0.078824]
[1727093557242,0.800423,63436.0,63435.0,0.30711563]
[1727093558447,0.801423,63436.0,63435.0,0.30811563]
[1727093558647,0.801423,63436.0,63435.0,0.30832564]
[1727093559741,0.801423,63436.0,63435.0,0.079824]
[1727093559742,0.82698238,63436.0,63435.0,0.079824]
[1727093559953,0.84918276,63436.0,63435.0,0.079824]
[1727093560143,0.92800576,63436.0,63435.0,0.001]
[1727093560340,0.92800576,63436.0,63423.0,0.128138]
[1727093560341,0.078833,63428.0,63425.0,0.078837]
[1727093560542,0.078833,63428.0,63423.0,0.078839]
[1727093560543,0.078838,63424.0,63423.0,0.078839]
[1727093561244,0.078838,63424.0,63423.0,0.158839]
[1727093561649,0.076838,63424.0,63423.0,0.158839]
[1727093562151,0.077838,63424.0,63423.0,0.159839]
[1727093563565,0.078838,63424.0,63423.0,0.159839]
[1727093564952,0.18323949,63424.0,63423.0,0.001]
[1727093565140,0.20617609,63424.0,63423.0,0.001]
[1727093565343,0.28617609,63424.0,63423.0,0.001]
[1727093565753,0.38065836,63424.0,63423.0,0.001]
[1727093565948,0.28617609,63424.0,63423.0,0.001]
[1727093566670,0.22116319,63424.0,63423.0,0.10565659]
[1727093567241,0.14116319,63424.0,63423.0,0.10565659]
[1727093567442,0.16477202,63424.0,63423.0,0.10565659]
[1727093567853,0.16477202,63424.0,63423.0,0.10492486]
[1727093568048,0.24477202,63424.0,63423.0,0.10492486]
[1727093568241,0.32361002,63424.0,63423.0,0.19940055]
[1727093568442,0.32361002,63424.0,63423.0,0.10492486]
[1727093568845,0.32361002,63424.0,63423.0,0.07973464]
[1727093569054,0.157684,63421.0,63420.0,0.00483464]
[1727093569255,0.078848,63416.0,63415.0,0.078849]
[1727093569450,0.439648,63416.0,63415.0,0.38695092]
[1727093569648,0.439648,63416.0,63415.0,0.26292398]
[1727093571154,0.3608,63416.0,63415.0,0.26292398]
[1727093571349,0.31445818,63416.0,63415.0,0.38620119]
[1727093571659,0.26022839,63416.0,63415.0,0.38720119]
[1727093572155,0.26022839,63416.0,63415.0,0.46499745]
[1727093572348,0.26022839,63416.0,63415.0,1.53807745]
[1727093572549,0.26022839,63416.0,63415.0,1.64652313]
[1727093572851,0.26022839,63416.0,63415.0,1.69612313]
[1727093573054,0.26022839,63416.0,63415.0,1.83779434]
[1727093573549,0.26022839,63416.0,63415.0,1.91664334]
[1727093573751,0.3608,63421.0,63420.0,0.157686]
[1727093574062,0.3608,63421.0,63420.0,0.46216413]
[1727093574453,0.3608,63421.0,63420.0,0.51216413]
[1727093574852,0.3628,63421.0,63420.0,0.51216413]
[1727093575256,0.3628,63421.0,63420.0,0.62225266]
[1727093575656,0.3628,63421.0,63420.0,0.51216413]
[1727093576157,0.3628,63421.0,63420.0,0.62225266]
[1727093576853,0.3628,63421.0,63420.0,0.51216413]
[1727093577049,0.3628,63421.0,63420.0,0.51167514]
[1727093577353,0.3628,63421.0,63420.0,0.62176367]
[1727093578054,0.3628,63421.0,63420.0,0.54292067]
[1727093578355,0.3628,63421.0,63420.0,0.43283214]
[1727093579261,0.441642,63421.0,63420.0,0.30283214]
[1727093581056,0.441642,63421.0,63420.0,0.2754154]
[1727093581563,0.46445653,63421.0,63420.0,0.2754154]
[1727093581761,0.46445653,63421.0,63420.0,0.078843]
[1727093582558,0.441642,63421.0,63420.0,0.208843]
[1727093584057,0.3628,63421.0,63420.0,0.208843]
[1727093587467,0.3628,63421.0,63420.0,0.287686]
[1727093587965,0.3628,63421.0,63420.0,0.208843]
[1727093589062,0.441642,63421.0,63420.0,0.208843]
[1727093589870,0.441642,63421.0,63420.0,0.43341012]
[1727093591369,0.3943058,63421.0,63420.0,0.30341012]
[1727093591573,0.4731478,63421.0,63420.0,0.22456712]
[1727093592264,0.5211478,63421.0,63420.0,0.10245029]
[1727093592462,0.5211478,63421.0,63420.0,0.19696079]
[1727093592861,0.5211478,63421.0,63420.0,0.10245029]
[1727093593269,1.5941878,63421.0,63420.0,0.10245029]
[1727093593658,1.6730298,63421.0,63420.0,0.10245029]
[1727093593873,1.5941878,63421.0,63420.0,0.10245029]
[1727093594367,1.6730298,63421.0,63420.0,0.10245029]
[1727093594861,1.5941878,63421.0,63420.0,0.10245029]
[1727093595275,1.6730298,63421.0,63420.0,0.10245029]
[1727093595473,1.5941878,63421.0,63420.0,0.10245029]
[1727093595668,1.6730298,63421.0,63420.0,0.10245029]
[1727093596871,1.5941878,63421.0,63420.0,0.10245029]
[1727093597168,1.6730298,63421.0,63420.0,0.10245029]
[1727093597675,1.5941878,63421.0,63420.0,0.10245029]
[1727093597864,1.0730298,63421.0,63420.0,0.10245029]
[1727093598271,1.0741878,63421.0,63420.0,0.10245029]
[1727093598567,0.6011478,63421.0,63420.0,0.10245029]
[1727093599164,1.0741878,63421.0,63420.0,0.10245029]
[1727093599359,0.157688,63419.0,63418.0,0.08]
[1727093599669,0.157688,63419.0,63418.0,0.10247127]
[1727093600275,0.157688,63419.0,63418.0,0.18247127]
[1727093600467,0.157688,63419.0,63418.0,0.10247127]
[1727093600674,0.158688,63419.0,63418.0,0.10447127]
[1727093600873,0.07885,63414.0,63413.0,0.0037]
[1727093601175,0.078859,63407.0,63406.0,0.16492559]
[1727093601370,0.3608,63407.0,63406.0,0.28367822]
[1727093601868,0.438659,63407.0,63406.0,0.28367822]
[1727093602070,0.436659,63407.0,63406.0,0.28367822]
[1727093602271,0.078865,63405.0,63404.0,0.078862]
[1727093602480,0.077865,63405.0,63404.0,0.19912042]
[1727093604279,1.09593031,63405.0,63399.0,0.0037]
[1727093604467,1.09593031,63405.0,63398.0,0.18895753]
[1727093604468,0.078869,63399.0,63398.0,0.078869]
[1727093605776,0.079869,63399.0,63398.0,0.078869]
[1727093607282,0.080869,63399.0,63398.0,0.078869]
[1727093610268,0.157748,63395.0,63394.0,0.02318095]
[1727093610474,0.439674,63395.0,63394.0,0.078875]
[1727093610785,0.3608,63395.0,63394.0,0.078875]
[1727093610977,0.3608,63395.0,63394.0,0.15775]
[1727093611470,0.3618,63395.0,63394.0,0.15775]
[1727093611672,0.31444589,63395.0,63394.0,0.15775]
[1727093612371,0.001,63399.0,63398.0,0.07887]
[1727093612569,0.001,63399.0,63398.0,0.20887]
[1727093613076,0.078868,63400.0,63399.0,0.078868]
[1727093613381,0.078868,63400.0,63399.0,0.15744399]
[1727093613781,0.078868,63400.0,63399.0,0.078868]
[1727093614685,0.079868,63400.0,63399.0,0.078868]
[1727093615885,0.002,63400.0,63399.0,0.18056077]
[1727093616388,0.002,63400.0,63399.0,0.25914119]
[1727093616677,0.002,63400.0,63399.0,0.18056077]
[1727093617682,0.080868,63400.0,63399.0,0.18056077]
[1727093618180,0.080868,63400.0,63399.0,0.25918237]
[1727093618385,0.080868,63400.0,63399.0,0.18059027]
[1727093618787,0.080868,63400.0,63399.0,0.079868]
[1727093618977,0.159736,63400.0,63399.0,0.001]
[1727093619476,0.080868,63400.0,63399.0,0.001]
[1727093620179,0.079868,63400.0,63399.0,0.001]
[1727093620387,0.080868,63400.0,63399.0,0.001]
[1727093620878,0.159736,63400.0,63399.0,0.001]
[1727093621483,0.078873,63396.0,63395.0,0.078873]
[1727093621679,0.078875,63394.0,63393.0,0.06288539]
[1727093621874,0.078875,63394.0,63379.0,0.06291939]
[1727093621875,0.078881,63389.0,63379.0,0.06291939]
[1727093622070,0.4908,63394.0,63373.0,0.13]
[1727093622071,0.439693,63380.0,63373.0,0.13]
[1727093622275,0.439693,63380.0,63378.0,0.078894]
[1727093622680,0.078894,63379.0,63378.0,0.078894]
[1727093623184,0.08,63379.0,63372.0,0.128602]
[1727093623393,0.3608,63374.0,63373.0,0.08]
[1727093623885,0.3608,63374.0,63373.0,0.158901]
[1727093624383,0.3608,63374.0,63373.0,0.208901]
[1727093624579,0.3618,63374.0,63373.0,0.208901]
[1727093624785,0.001,63374.0,63373.0,0.208901]
[1727093624980,0.3618,63374.0,63373.0,0.208901]
[1727093625177,0.3628,63374.0,63373.0,0.208901]
[1727093628386,0.3608,63380.0,63379.0,0.078894]
[1727093628595,0.3608,63380.0,63379.0,0.208894]
[1727093628980,0.3608,63380.0,63379.0,0.39115579]
[1727093629476,0.3608,63380.0,63379.0,0.39116821]
[1727093629681,0.3618,63380.0,63379.0,0.39116821]
[1727093629894,0.3628,63380.0,63379.0,0.208894]
[1727093630117,0.3628,63380.0,63379.0,0.28737602]
[1727093630385,0.3628,63380.0,63379.0,0.39121253]
[1727093630782,0.3628,63380.0,63379.0,0.28737602]
[1727093631086,0.3628,63380.0,63379.0,0.39117608]
[1727093631292,0.3628,63380.0,63379.0,0.31269406]
[1727093631293,0.30753824,63380.0,63379.0,0.31269406]
[1727093633177,0.002,63380.0,63379.0,0.31269406]
[1727093633688,0.002,63380.0,63379.0,0.18269406]
[1727093634587,0.441693,63380.0,63379.0,0.10380006]
[1727093634792,0.441693,63380.0,63379.0,0.078894]
[1727093635183,0.078894,63379.0,63378.0,0.07854075]
[1727093635493,0.078895,63378.0,63377.0,0.15743575]
[1727093635692,0.078895,63378.0,63377.0,0.26069821]
[1727093635890,0.078895,63378.0,63377.0,0.18180321]
[1727093636093,0.077895,63378.0,63377.0,0.07854075]
[1727093636282,0.442533,63380.0,63376.0,0.07854176]
[1727093636489,0.078896,63377.0,63376.0,0.07854176]
[1727093636701,0.078896,63377.0,63376.0,0.10328338]
[1727093637189,0.078896,63377.0,63376.0,0.18182513]
[1727093637386,0.078896,63377.0,63376.0,0.10328338]
[1727093637586,0.078896,63377.0,63376.0,0.18182493]
[1727093638401,0.078898,63376.0,63375.0,0.07854155]
[1727093638588,0.13,63377.0,63372.0,0.07854155]
[1727093638589,0.131,63377.0,63372.0,0.07854155]
[1727093638788,0.078903,63372.0,63371.0,0.07854155]
[1727093638996,0.078903,63372.0,63371.0,0.2609488]
[1727093639296,0.078903,63372.0,63371.0,0.31239948]
[1727093639687,0.078899,63375.0,63374.0,0.078898]
[1727093641099,0.078899,63375.0,63374.0,0.15744572]
[1727093641282,0.001,63376.0,63375.0,0.078899]
[1727093641587,0.078897,63377.0,63376.0,0.078898]
[1727093641794,0.078897,63377.0,63376.0,0.26084761]
[1727093642186,0.078897,63377.0,63376.0,0.26084944]
[1727093642395,0.078897,63377.0,63376.0,0.18229791]
[1727093643193,0.3608,63380.0,63379.0,0.078894]
[1727093643399,0.3608,63386.0,63379.0,0.23327419]
[1727093643617,0.3608,63386.0,63385.0,0.2085655]
[1727093643808,0.3608,63386.0,63385.0,0.23327419]
[1727093644116,0.3608,63386.0,63385.0,0.31216019]
[1727093645011,0.3608,63386.0,63385.0,0.31196574]
[1727093645012,0.439685,63386.0,63385.0,0.31196574]
[1727093645211,0.440685,63386.0,63385.0,0.10307974]
[1727093645406,0.440685,63386.0,63385.0,0.18166717]
[1727093645608,0.440685,63386.0,63385.0,0.07858743]
[1727093645909,0.078886,63385.0,63383.0,0.22435896]
[1727093646113,0.078886,63385.0,63384.0,0.19748715]
[1727093646416,0.078886,63385.0,63384.0,0.27637515]
[1727093646614,0.078886,63385.0,63384.0,0.18201619]
[1727093648117,0.078886,63385.0,63384.0,0.10312819]
[1727093648118,0.158772,63385.0,63384.0,0.10312819]
[1727093648317,0.207972,63385.0,63384.0,0.10312819]
[1727093648509,0.207972,63385.0,63384.0,0.18183028]
[1727093648709,0.206972,63385.0,63384.0,0.07870209]
[1727093648905,0.207972,63385.0,63384.0,0.07970209]
[1727093649104,0.2305703,63385.0,63384.0,0.07970209]
[1727093649419,1.3038903,63385.0,63384.0,0.09070209]
[1727093649622,1.3038903,63385.0,63384.0,0.012]
[1727093650203,1.3827763,63385.0,63384.0,0.012]
[1727093651307,0.236664,63384.0,63383.0,0.03203765]
[1727093651508,0.236664,63384.0,63383.0,0.13574096]
[1727093651708,1.309984,63384.0,63383.0,0.13574096]
[1727093651914,1.309984,63384.0,63383.0,0.03203765]
[1727093652121,0.157788,63379.0,63378.0,0.09435896]
[1727093652311,0.157788,63379.0,63378.0,0.19776257]
[1727093652503,0.144788,63379.0,63378.0,0.10340361]
[1727093653911,0.223682,63379.0,63378.0,0.10340361]
[1727093654213,0.224682,63379.0,63378.0,0.10340361]
[1727093654414,0.224682,63379.0,63372.0,0.0037]
[1727093654415,0.078901,63373.0,63372.0,0.0037]
[1727093654612,0.078901,63373.0,63372.0,0.30578776]
[1727093655515,0.079901,63373.0,63372.0,0.30578776]
[1727093655710,0.079901,63373.0,63372.0,0.18241063]
[1727093656016,0.080901,63373.0,63372.0,0.18241063]
[1727093658118,0.10369764,63373.0,63372.0,0.18241063]
[1727093659018,0.10369764,63373.0,63372.0,0.18240427]
[1727093659335,0.10369764,63373.0,63372.0,0.10350127]
[1727093660027,0.10369764,63373.0,63372.0,0.18240427]
[1727093660028,0.080901,63373.0,63372.0,0.18240427]
[1727093660419,0.080901,63373.0,63372.0,0.27694924]
[1727093660618,0.080901,63373.0,63372.0,0.19804624]
[1727093660819,0.080901,63373.0,63372.0,0.10350127]
[1727093661323,0.080901,63373.0,63372.0,0.19804451]
[1727093662823,0.159802,63373.0,63372.0,0.10350127]
[1727093663332,0.080901,63373.0,63372.0,0.10350127]
[1727093668528,0.078903,63372.0,63371.0,0.08]
[1727093669031,0.078903,63372.0,63371.0,0.18344228]
[1727093669628,0.078903,63372.0,63371.0,0.27798552]
[1727093669629,0.079903,63372.0,63371.0,0.27798552]
[1727093670030,0.080903,63372.0,63371.0,0.27798552]
[1727093670734,0.080903,63372.0,63371.0,0.35688952]
[1727093670935,0.080903,63372.0,63371.0,0.26234628]
[1727093670936,0.002,63372.0,63371.0,0.26234628]
[1727093671829,0.002,63372.0,63371.0,0.10344228]
[1727093671830,0.080903,63372.0,63371.0,0.10344228]
[1727093672035,0.080903,63372.0,63371.0,0.19796776]
[1727093672235,0.080903,63372.0,63371.0,0.10344228]
[1727093673335,0.002,63372.0,63371.0,0.1031679]
[1727093674131,0.080903,63372.0,63371.0,0.1031679]
[1727093675230,0.080903,63372.0,63371.0,0.19769338]
[1727093675628,0.441703,63372.0,63371.0,0.27659738]
[1727093676237,0.441703,63372.0,63371.0,0.1820719]
[1727093678040,0.441703,63372.0,63371.0,0.078904]
[1727093678231,0.441703,63372.0,63371.0,0.30533732]
[1727093680329,0.441703,63372.0,63371.0,0.18218817]
[1727093680533,0.441703,63372.0,63371.0,0.10328417]
[1727093680747,0.520606,63372.0,63371.0,0.10328417]
[1727093681749,0.441703,63372.0,63371.0,0.10328417]
[1727093682041,0.441703,63372.0,63371.0,0.18218817]
[1727093682235,0.441703,63372.0,63371.0,0.27686044]
[1727093682833,0.441703,63372.0,63371.0,0.17357627]
[1727093683142,0.441703,63372.0,63371.0,0.27691606]
[1727093685542,0.441703,63372.0,63371.0,0.18224379]
[1727093686436,0.441703,63372.0,63371.0,0.27692632]
[1727093687245,0.441703,63372.0,63371.0,0.18224379]
[1727093687740,0.441703,63372.0,63371.0,0.18225895]
[1727093689339,0.441703,63372.0,63371.0,0.3054618]
[1727093690735,0.441703,63372.0,63371.0,0.3854618]
[1727093691646,0.002,63372.0,63371.0,0.26225895]
[1727093691846,0.3608,63384.0,63371.0,0.76450916]
[1727093692033,0.3608,63384.0,63383.0,0.237778]
[1727093692233,0.3608,63384.0,63383.0,0.38421179]
[1727093692450,0.3608,63392.0,63391.0,0.078879]
[1727093692655,0.3608,63392.0,63391.0,0.26167404]
[1727093692843,0.0475,63401.0,63396.0,0.078872]
[1727093693037,0.0475,63401.0,63396.0,0.23769795]
[1727093693243,0.078874,63396.0,63394.0,0.07882595]
[1727093693952,0.078874,63396.0,63393.0,0.078876]
[1727093694446,0.078874,63396.0,63392.0,0.08]
[1727093694746,0.15036492,63401.0,63395.0,0.08]
[1727093695048,0.15036492,63401.0,63397.0,0.06297523]
[1727093695246,0.15036492,63401.0,63395.0,0.08]
[1727093695247,0.15036492,63401.0,63396.0,0.06297523]
[1727093695452,0.07887,63399.0,63398.0,0.07887]
[1727093696544,0.078873,63396.0,63395.0,0.001]
[1727093696745,0.078873,63396.0,63394.0,0.06297523]
[1727093696959,0.078873,63396.0,63395.0,0.078874]
[1727093697142,0.158873,63396.0,63395.0,0.078874]
[1727093697953,0.078873,63396.0,63395.0,0.078874]
[1727093698540,0.078873,63396.0,63395.0,0.079874]
[1727093699238,0.078873,63396.0,63395.0,0.12703145]
[1727093699437,0.079873,63396.0,63395.0,0.12703145]
[1727093699645,0.079873,63396.0,63395.0,0.520674]
[1727093699646,0.001,63396.0,63395.0,0.520674]
[1727093699850,0.001,63396.0,63395.0,0.599548]
[1727093700348,0.00236636,63408.0,63407.0,0.078859]
[1727093700544,0.00236636,63408.0,63407.0,0.208859]
[1727093700849,0.02457457,63408.0,63407.0,0.078859]
[1727093701145,0.00236636,63408.0,63407.0,0.078859]
[1727093702571,0.00436636,63408.0,63407.0,0.078859]
[1727093703256,0.00436636,63408.0,63407.0,0.080859]
[1727093703442,0.00436636,63408.0,63407.0,0.571659]
[1727093703641,0.00436636,63408.0,63407.0,0.569659]
[1727093703844,0.00436636,63408.0,63407.0,0.61880587]
[1727093704153,0.002,63408.0,63407.0,0.571659]
[1727093704351,0.02274927,63413.0,63412.0,0.078853]
[1727093704555,0.16606122,63423.0,63412.0,0.078853]
[1727093704556,0.16606122,63423.0,63416.0,0.078848]
[1727093704755,0.0042,63437.0,63416.0,0.078848]
[1727093704756,0.078838,63425.0,63424.0,0.078838]
[1727093706447,0.3608,63426.0,63425.0,0.078837]
[1727093708361,0.3608,63426.0,63425.0,0.080837]
[1727093709060,0.4815839,63426.0,63425.0,0.085837]
[1727093709467,0.38736421,63426.0,63425.0,0.085837]
[1727093711353,0.3618,63426.0,63425.0,0.085837]
[1727093711755,0.001,63426.0,63425.0,0.085837]
[1727093713852,0.001,63426.0,63425.0,0.164674]
[1727093716362,0.00236547,63438.0,63437.0,0.078822]
[1727093716565,0.00236547,63438.0,63437.0,0.208822]
[1727093717670,0.02036547,63438.0,63437.0,0.289644]
[1727093718356,0.078807,63450.0,63447.0,0.078809]
[1727093719655,0.439608,63448.0,63447.0,0.078809]
[1727093719853,0.51349571,63448.0,63437.0,0.003]
[1727093720051,0.078821,63441.0,63440.0,0.078818]
[1727093721268,0.078821,63441.0,63440.0,0.082818]
[1727093721758,0.078821,63441.0,63440.0,0.006]
[1727093724060,0.1043793,63441.0,63440.0,0.007]
[1727093724261,0.12694276,63441.0,63440.0,0.007]
[1727093724464,0.22067428,63441.0,63440.0,0.007]
[1727093724664,0.22067428,63441.0,63440.0,0.006]
[1727093725067,0.22067428,63441.0,63440.0,0.084818]
[1727093725068,0.12694276,63441.0,63440.0,0.084818]
[1727093725260,0.12694276,63441.0,63440.0,0.083818]
[1727093725575,0.29951096,63441.0,63440.0,0.005]
[1727093725770,0.20575576,63441.0,63440.0,0.005]
[1727093726464,0.29953368,63441.0,63440.0,0.005]
[1727093726676,0.20575576,63441.0,63440.0,0.005]
[1727093727171,0.24546584,63441.0,63440.0,0.005]
[1727093727364,0.16664884,63441.0,63440.0,0.005]
[1727093727562,0.16665668,63441.0,63440.0,0.004]
[1727093727870,0.16665668,63441.0,63440.0,0.005]
[1727093728166,0.24547368,63441.0,63440.0,0.005]
[1727093728365,0.24547368,63441.0,63440.0,0.004]
[1727093728569,0.24547368,63441.0,63440.0,0.005]
[1727093728773,0.16665668,63441.0,63440.0,0.005]
[1727093729164,0.24547368,63441.0,63440.0,0.005]
[1727093730067,0.14109739,63441.0,63440.0,0.005]
[1727093730466,0.14109739,63441.0,63440.0,0.004]
[1727093730664,0.21991439,63441.0,63440.0,0.005]
[1727093730865,0.18019746,63441.0,63440.0,0.005]
[1727093731774,0.10138046,63441.0,63440.0,0.083818]
[1727093732276,0.02256346,63441.0,63440.0,0.083818]
[1727093732575,0.078815,63443.0,63442.0,0.078816]
[1727093732777,0.078815,63443.0,63442.0,0.208816]
[1727093733663,0.078815,63443.0,63442.0,0.210816]
[1727093733967,0.079815,63443.0,63442.0,0.210816]
[1727093735780,0.079815,63443.0,63442.0,0.080816]
[1727093736377,0.15863,63443.0,63442.0,0.002]
[1727093738269,0.237445,63443.0,63442.0,0.002]
[1727093741269,0.26300411,63443.0,63442.0,0.002]
[1727093743076,0.35716025,63443.0,63442.0,0.002]
[1727093743682,0.26300411,63443.0,63442.0,0.002]
[1727093745465,0.236466,63437.0,63436.0,0.0037]
[1727093745671,0.078823,63436.0,63429.0,0.082531]
[1727093745976,0.078834,63427.0,63426.0,0.770135]
[1727093746176,0.078834,63427.0,63426.0,0.3608]
[1727093746475,0.157668,63427.0,63426.0,0.3608]
[1727093746666,0.157668,63427.0,63426.0,0.439635]
[1727093746870,0.157668,63427.0,63426.0,0.3608]
[1727093747466,0.39526903,63427.0,63426.0,0.453635]
[1727093747775,0.29313861,63427.0,63426.0,0.467635]
[1727093747970,0.29213861,63427.0,63426.0,0.453635]
[1727093748196,0.29313861,63427.0,63426.0,0.463635]
[1727093748683,0.29213861,63427.0,63426.0,0.455635]
[1727093750275,0.41797781,63427.0,63426.0,0.452635]
[1727093750879,0.41797781,63427.0,63426.0,0.450635]
[1727093751077,0.29213861,63427.0,63426.0,0.450635]
[1727093752974,0.21330461,63427.0,63426.0,0.450635]
[1727093753673,0.21330461,63427.0,63426.0,0.089835]
[1727093754181,0.33903102,63427.0,63426.0,0.089835]
[1727093754681,0.10254278,63427.0,63426.0,0.089835]
[1727093758590,0.26021078,63427.0,63426.0,0.011]
[1727093758786,0.39021078,63427.0,63426.0,0.011]
[1727093758987,0.39021078,63427.0,63426.0,0.05822032]
[1727093760586,0.75101078,63427.0,63426.0,0.011]
[1727093762295,0.75101078,63427.0,63421.0,0.04722032]
[1727093762296,0.15768,63422.0,63421.0,0.04722032]
[1727093762495,0.157684,63421.0,63420.0,0.04722032]
[1727093762818,0.06454932,63421.0,63415.0,0.440528]
[1727093763094,0.078848,63416.0,63415.0,0.00088]
[1727093763293,0.078854,63411.0,63410.0,0.406455]
[1727093763597,0.09542142,63411.0,63410.0,0.3268]
[1727093763986,0.08842142,63411.0,63410.0,0.3268]
[1727093764186,0.08842142,63411.0,63410.0,0.078855]
[1727093764481,0.08842142,63411.0,63408.0,0.04976547]
[1727093764482,0.078857,63409.0,63408.0,0.04976547]
[1727093764698,0.16602716,63409.0,63408.0,0.00236547]
[1727093764887,0.08342442,63409.0,63408.0,0.00236547]
[1727093766504,0.15294518,63409.0,63408.0,0.00236547]
[1727093766795,0.08542442,63409.0,63408.0,0.00236547]
[1727093767391,0.08342442,63409.0,63408.0,0.00236547]
[1727093767587,0.08442442,63409.0,63408.0,0.00236547]
[1727093767796,0.16328142,63409.0,63408.0,0.00236547]
[1727093769696,0.137714,63409.0,63408.0,0.00236547]
[1727093771400,0.137714,63409.0,63406.0,0.04722032]
[1727093771401,0.157718,63407.0,63406.0,0.04722032]
[1727093771591,0.157728,63403.0,63402.0,0.04722032]
[1727093771793,0.078865,63402.0,63401.0,0.04722032]
[1727093771995,0.07886,63406.0,63400.0,0.04710987]
[1727093772204,0.078867,63401.0,63400.0,0.04710987]
[1727093772500,0.49164,63407.0,63398.0,0.04710987]
[1727093772501,0.078866,63402.0,63398.0,0.04710987]
[1727093772699,0.15774,63398.0,63397.0,0.04710987]
[1727093772891,0.13,63398.0,63393.0,0.06295866]
[1727093773094,0.078875,63394.0,63393.0,0.04710381]
[1727093773295,0.078875,63394.0,63392.0,0.04710381]
[1727093773296,0.078877,63393.0,63392.0,0.04710381]
[1727093773503,0.078881,63389.0,63388.0,0.06295866]
[1727093773689,0.078881,63389.0,63387.0,0.06295866]
[1727093773893,0.078881,63389.0,63388.0,0.078883]
[1727093775495,0.079881,63389.0,63388.0,0.078883]
[1727093775694,0.09812146,63389.0,63388.0,0.078883]
[1727093775894,0.09912146,63389.0,63388.0,0.078883]
[1727093776290,0.078884,63387.0,63386.0,0.47115866]
[1727093776601,0.078884,63387.0,63386.0,0.4074]
[1727093777299,0.079884,63387.0,63386.0,0.4074]
[1727093777706,0.080884,63387.0,63386.0,0.4074]
[1727093778402,0.080884,63387.0,63386.0,0.486285]
[1727093778600,0.159768,63387.0,63386.0,0.3608]
[1727093780397,0.080884,63387.0,63386.0,0.3608]
[1727093781997,0.078888,63384.0,63383.0,0.078889]
[1727093783407,0.079888,63384.0,63383.0,0.078889]
[1727093783994,0.080888,63384.0,63383.0,0.078889]
[1727093784796,0.080888,63384.0,63381.0,0.0456]
[1727093784797,0.07889,63382.0,63381.0,0.0456]
[1727093784996,0.07889,63382.0,63381.0,0.124491]
[1727093785399,0.07889,63382.0,63381.0,0.0456]
[1727093786004,0.07889,63382.0,63380.0,0.078892]
[1727093786005,0.078891,63381.0,63380.0,0.078892]
[1727093786209,0.001,63382.0,63379.0,0.4062]
[1727093786210,0.078893,63380.0,63379.0,0.4062]
[1727093786402,0.078893,63380.0,63379.0,0.485094]
[1727093786905,0.078893,63380.0,63379.0,0.439694]
[1727093787812,0.079893,63380.0,63379.0,0.439694]
[1727093789002,0.09936216,63380.0,63379.0,0.439694]
[1727093791601,0.02046916,63380.0,63379.0,0.48672755]
[1727093791805,0.078878,63392.0,63389.0,0.078881]
[1727093792002,0.078878,63392.0,63389.0,0.4908]
[1727093792202,0.09702391,63392.0,63389.0,0.53789394]
[1727093792399,0.09702391,63392.0,63390.0,0.09439394]
[1727093792614,0.09702391,63392.0,63390.0,0.0473]
[1727093793315,0.09802391,63392.0,63391.0,0.078879]
[1727093793703,0.09902391,63392.0,63391.0,0.078879]
[1727093794917,0.078879,63391.0,63390.0,0.12618]
[1727093796317,0.079879,63391.0,63390.0,0.12618]
[1727093796513,0.080879,63391.0,63390.0,0.12618]
[1727093797715,0.078884,63387.0,63386.0,0.0488]
[1727093797922,0.078891,63382.0,63378.0,0.0497]
[1727093798109,0.157785,63382.0,63381.0,0.078891]
[1727093798315,0.157785,63382.0,63378.0,0.126195]
[1727093798316,0.078894,63379.0,63378.0,0.126195]
[1727093799715,0.079894,63379.0,63378.0,0.126195]
[1727093800620,0.079894,63379.0,63378.0,0.17328894]
[1727093800820,0.080894,63379.0,63378.0,0.17328894]
[1727093801316,0.002,63379.0,63378.0,0.17328894]
[1727093801524,0.002,63379.0,63378.0,1.357345]
[1727093801721,0.002,63379.0,63378.0,0.283985]
[1727093803209,0.0037,63387.0,63386.0,0.15777]
[1727093803522,0.17526181,63394.0,63386.0,0.569685]
[1727093803917,0.17526181,63394.0,63387.0,0.0921]
[1727093804118,0.17526181,63394.0,63393.0,0.078877]
[1727093804921,0.17626181,63394.0,63393.0,0.078877]
[1727093805517,0.08324302,63394.0,63393.0,0.078877]
[1727093806822,0.002,63394.0,63393.0,0.078877]
[1727093807120,0.002,63394.0,63393.0,0.29963605]
[1727093807326,0.0037,63402.0,63401.0,0.078867]
[1727093807624,0.078859,63408.0,63407.0,0.078859]
[1727093809417,0.088859,63408.0,63407.0,0.078859]
[1727093809923,0.01,63408.0,63407.0,0.078859]
[1727093810313,0.016,63408.0,63407.0,0.078859]
[1727093811121,0.087858,63408.0,63407.0,0.078859]
[1727093811630,0.081858,63408.0,63407.0,0.078859]
[1727093814528,0.2429779,63408.0,63407.0,0.04072697]
[1727093816228,0.078863,63405.0,63404.0,0.078861]
[1727093816525,0.318533,63405.0,63404.0,0.078861]
[1727093818322,0.31771669,63405.0,63404.0,0.078861]
[1727093818732,0.31871669,63405.0,63404.0,0.078861]
[1727093819118,0.27397297,63405.0,63404.0,0.078861]
[1727093819638,0.31871951,63405.0,63404.0,0.078861]
[1727093819927,0.27397297,63405.0,63404.0,0.078861]
[1727093820133,0.31869687,63405.0,63404.0,0.078861]
[1727093822733,0.209863,63405.0,63404.0,0.078861]
[1727093828036,0.001,63405.0,63404.0,0.439661]
[1727093829033,0.001,63405.0,63404.0,0.518524]